Workbook

Sheet 各系总分
A1: 邯郸科技职业学院先进班集体评分测评表
A2: 项目 班级 | B2: 总分 （100分） | C2: 出勤（25分） 出勤率×25 | D2: 卫生 （25分） 卫生评比得分的平均值×25% | E2: 活动 （16分） 根据提供的活动相关证书等佐证材料（系以上），个人加1分；班级加5分。加满为止 | F2: 荣誉加分 （6分） 好人好事、校外荣誉。提供可考的证明，每人每次加1分。 | G2: 主题班会 （16分） 每提供一次主题班会佐证材料（含讲稿、文字、图片或视频），加1分。 | H2: 疫情防控 （12分） 按时填报疫情防控日报表，每次0.1分。 | I2: 违纪 （扣分，上不封顶。被系以上通报批评1分、警告2分、严重警告3分、记过4分、留校查看10分）
A3: 财经系20级会计管理3班 | B3: =SUM(C3:I3) -> 96.42 | C3: 24.10 | D3: 22.32 | E3: 16.00 | F3: 6.00 | G3: 16.00 | H3: 12.00
A4: 医药卫生20级护理5班 | B4: =SUM(C4:I4) -> 92.24 | C4: 21.33 | D4: 20.91 | E4: 16.00 | F4: 6.00 | G4: 16.00 | H4: 12.00
A5: 电子信息系20级物联网2班 | B5: =SUM(C5:I5) -> 85.41 | C5: 16.60 | D5: 18.80 | E5: 16.00 | F5: 6.00 | G5: 16.00 | H5: 12.00
A6: 农牧系20级畜牧兽医1班 | B6: =SUM(C6:I6) -> 83.49 | C6: 12.63 | D6: 20.86 | E6: 16.00 | F6: 6.00 | G6: 16.00 | H6: 12.00
A7: 计算机系20级计算机应用技术1班 | B7: =SUM(C7:I7) -> 77.78 | C7: 13.97 | D7: 19.81 | E7: 16.00 | F7: 6.00 | G7: 10.00 | H7: 12.00
B8: =SUM(C8:I8) -> 0
B9: 0
B10: 0
B11: 0
B12: 0
B13: 0
B14: 0

Sheet 各系卫生得分
B1: 班级 | C1: 楼号 | D1: 宿 舍 号 | E1: 2021/ 10/15 | F1: 2021/ 10/18 | G1: 2021/ 10/20 | H1: 2021/ 10/22 | I1: 2021/ 10/25 | J1: 2021/ 10/27 | K1: 2021/ 10/29 | L1: 2021/ 11/1 | M1: 2021/ 11/3 | N1: 2021/ 11/5 | O1: 2021/ 11/8 | P1: 2021/ 11/10 | Q1: 2021/ 11/12 | R1: 2021/ 11/15 | S1: 2021/ 11/17 | T1: 2021/ 11/19 | U1: 2021/ 11/22 | V1: 2021/ 11/24 | W1: 2021/ 11/26 | X1: 2021/ 11/29 | Y1: 2021/ 12/1 | Z1: 2021/ 12/3 | AA1: 2021/ 12/6 | AB1: 2021/ 12/8 | AC1: 2021/ 12/9 | AD1: 平均值 | AE1: 评比结果
A2: 财经系20级会计管理3班 | B2: 会计3班（2020级） | C2: 6 | D2: 420 | E2: 100 | F2: 100 | G2: 95 | H2: 98 | I2: 96 | J2: 96 | K2: 96 | L2: 97 | M2: 98 | N2: 98 | O2: 97 | P2: 96 | Q2: 95 | R2: 98 | S2: 97 | T2: 95 | U2: 93 | V2: 95 | W2: 97 | X2: 97 | Y2: 94 | Z2: 96 | AA2: 96 | AB2: 93 | AC2: 95 | AD2: 96.32 | AE2: 文明宿舍
B3: 会计3班（2020级） | C3: 6 | D3: 413 | E3: 100 | F3: 98 | G3: 97 | H3: 94 | I3: 92 | J3: 92 | K3: 92 | L3: 92 | M3: 90 | N3: 93 | O3: 91 | P3: 93 | Q3: 90 | R3: 90 | S3: 89 | T3: 90 | U3: 89 | V3: 89 | W3: 93 | X3: 90 | Y3: 90 | Z3: 90 | AA3: 93 | AB3: 91 | AC3: 94 | AD3: 92.08 | AE3: 文明宿舍
B4: 会计3班（2020级） | C4: 6 | D4: 417 | E4: 100 | F4: 97 | G4: 97 | H4: 93 | I4: 92 | J4: 92 | K4: 93 | L4: 90 | M4: 90 | N4: 92 | O4: 91 | P4: 94 | Q4: 90 | R4: 90 | S4: 92 | T4: 90 | U4: 91 | V4: 89 | W4: 90 | X4: 89 | Y4: 90 | Z4: 93 | AA4: 90 | AB4: 92 | AC4: 93 | AD4: 92 | AE4: 文明宿舍
B5: 会计3班（2020级） | C5: 6 | D5: 414 | E5: 95 | F5: 97 | G5: 96 | H5: 93 | I5: 92 | J5: 93 | K5: 93 | L5: 92 | M5: 90 | N5: 93 | O5: 90 | P5: 93 | Q5: 90 | R5: 91 | S5: 91 | T5: 90 | U5: 90 | V5: 89 | W5: 90 | X5: 89 | Y5: 90 | Z5: 90 | AA5: 91 | AB5: 92 | AC5: 94 | AD5: 91.76 | AE5: 文明宿舍
B6: 会计3班（2020级） | C6: 6 | D6: 415 | E6: 100 | F6: 98 | G6: 97 | H6: 92 | I6: 90 | J6: 93 | K6: 92 | L6: 90 | M6: 90 | N6: 92 | O6: 93 | P6: 91 | Q6: 90 | R6: 91 | S6: 90 | T6: 89 | U6: 89 | V6: 90 | W6: 89 | X6: 88 | Y6: 89 | Z6: 94 | AA6: 92 | AB6: 90 | AC6: 92 | AD6: 91.64 | AE6: 文明宿舍
B7: 会计3班（2020级） | C7: 6 | D7: 416 | E7: 80 | F7: 99 | G7: 97 | H7: 93 | I7: 93 | J7: 92 | K7: 92 | L7: 91 | M7: 91 | N7: 93 | O7: 93 | P7: 92 | Q7: 90 | R7: 90 | S7: 89 | T7: 90 | U7: 89 | V7: 89 | W7: 90 | X7: 90 | Y7: 89 | Z7: 90 | AA7: 91 | AB7: 90 | AC7: 93 | AD7: 91.04 | AE7: 文明宿舍
B8: 会计3班（2020级） | C8: 6 | D8: 418 | E8: 0 | F8: 97 | G8: 98 | H8: 93 | I8: 91 | J8: 92 | K8: 92 | L8: 90 | M8: 90 | N8: 93 | O8: 90 | P8: 92 | Q8: 90 | R8: 95 | S8: 92 | T8: 90 | U8: 89 | V8: 90 | W8: 89 | X8: 90 | Y8: 89 | Z8: 92 | AA8: 92 | AB8: 91 | AC8: 92 | AD8: 87.96 | AE8: 五星级宿舍
B9: 会计2/3班（2020级） | C9: 1 | D9: 432 | E9: 71 | F9: 67 | G9: 72 | H9: 70 | I9: 71 | J9: 80 | K9: 88 | L9: 85 | M9: 83 | N9: 83 | O9: 83 | P9: 87 | Q9: 87 | R9: 72 | S9: 86 | T9: 87 | U9: 87 | V9: 86 | W9: 86 | X9: 86 | Y9: 85 | Z9: 86 | AA9: 86 | AB9: 87 | AC9: 91 | AD9: 82.08 | AE9: 四星级宿舍
B10: 会计3班（2020级） | C10: 1 | D10: 431 | E10: 75 | F10: 67 | G10: 66 | H10: 74 | I10: 65 | J10: 80 | K10: 82 | L10: 67 | M10: 72 | N10: 72 | O10: 72 | P10: 82 | Q10: 82 | R10: 83 | S10: 84 | T10: 85 | U10: 83 | V10: 83 | W10: 83 | X10: 83 | Y10: 82 | Z10: 84 | AA10: 85 | AB10: 82 | AC10: 89 | AD10: 78.48 | AE10: 三星级宿舍
AC11: 平均值 | AD11: =SUM(AD2:AD10)/9 -> 89.26222222
A12: 农牧系20级畜牧兽医1班 | B12: 畜牧1班(2020级) | C12: 6 | D12: 516 | E12: 87 | F12: 80 | G12: 85 | H12: 88 | I12: 87 | J12: 82 | K12: 83 | L12: 88 | M12: 86 | N12: 88 | O12: 85 | P12: 89 | Q12: 89 | R12: 87 | S12: 83 | T12: 84 | U12: 85 | V12: 84 | W12: 88 | X12: 87 | Y12: 88 | Z12: 88 | AA12: 88 | AB12: 85 | AC12: 91 | AD12: 86.2 | AE12: 五星级宿舍
B13: 畜牧1班(2020级) | C13: 1 | D13: 532 | E13: 83 | F13: 71 | G13: 84 | H13: 84 | I13: 86 | J13: 83 | K13: 83 | L13: 88 | M13: 80 | N13: 73 | O13: 84 | P13: 90 | Q13: 86 | R13: 86 | S13: 89 | T13: 82 | U13: 89 | V13: 90 | W13: 87 | X13: 86 | Y13: 90 | Z13: 89 | AA13: 85 | AB13: 87 | AC13: 96 | AD13: 85.24 | AE13: 四星级宿舍
B14: 畜牧1/2班（2020级） | C14: 6 | D14: 518 | E14: 68 | F14: 80 | G14: 85 | H14: 93 | I14: 90 | J14: 66 | K14: 83 | L14: 89 | M14: 87 | N14: 85 | O14: 84 | P14: 89 | Q14: 87 | R14: 87 | S14: 87 | T14: 81 | U14: 86 | V14: 84 | W14: 82 | X14: 86 | Y14: 87 | Z14: 80 | AA14: 87 | AB14: 89 | AC14: 92 | AD14: 84.56 | AE14: 四星级宿舍
B15: 畜牧1班(2020级) | C15: 6 | D15: 517 | E15: 64 | F15: 73 | G15: 75 | H15: 90 | I15: 87 | J15: 84 | K15: 82 | L15: 85 | M15: 82 | N15: 85 | O15: 86 | P15: 88 | Q15: 87 | R15: 84 | S15: 78 | T15: 82 | U15: 82 | V15: 85 | W15: 86 | X15: 82 | Y15: 86 | Z15: 71 | AA15: 87 | AB15: 88 | AC15: 90 | AD15: 82.76 | AE15: 四星级宿舍
B16: 畜牧1班(2020级) | C16: 1 | D16: 531 | E16: 84 | F16: 64 | G16: 84 | H16: 84 | I16: 85 | J16: 81 | K16: 83 | L16: 88 | M16: 81 | N16: 68 | O16: 77 | P16: 84 | Q16: 85 | R16: 78 | S16: 86 | T16: 84 | U16: 80 | V16: 86 | W16: 86 | X16: 83 | Y16: 87 | Z16: 87 | AA16: 83 | AB16: 85 | AC16: 92 | AD16: 82.6 | AE16: 四星级宿舍
B17: 畜牧1班(2020级) | C17: 1 | D17: 519 | E17: 85 | F17: 82 | G17: 83 | H17: 65 | I17: 81 | J17: 87 | K17: 90 | L17: 84 | M17: 84 | N17: 72 | O17: 80 | P17: 85 | Q17: 81 | R17: 70 | S17: 85 | T17: 81 | U17: 76 | V17: 85 | W17: 85 | X17: 82 | Y17: 86 | Z17: 79 | AA17: 82 | AB17: 85 | AC17: 91 | AD17: 81.84 | AE17: 四星级宿舍
B18: 畜牧1/2班（2020级） | C18: 1 | D18: 520 | E18: 82 | F18: 71 | G18: 87 | H18: 65 | I18: 79 | J18: 88 | K18: 89 | L18: 65 | M18: 84 | N18: 77 | O18: 79 | P18: 87 | Q18: 83 | R18: 81 | S18: 82 | T18: 82 | U18: 77 | V18: 82 | W18: 82 | X18: 82 | Y18: 83 | Z18: 78 | AA18: 82 | AB18: 84 | AC18: 91 | AD18: 80.88 | AE18: 三星级宿舍
AC19: 平均值 | AD19: =SUM(AD12:AD18)/7 -> 83.44
A20: 医药卫生20级护理5班 | B20: 护理5班（2020级） | C20: 5 | D20: 507 | E20: 85 | F20: 88 | G20: 89 | H20: 88 | I20: 83 | J20: 84 | K20: 86 | L20: 86 | M20: 84 | N20: 65 | O20: 87 | P20: 88 | Q20: 87 | R20: 89 | S20: 88 | T20: 89 | U20: 88 | V20: 89 | W20: 90 | X20: 87 | Y20: 90 | Z20: 88 | AA20: 88 | AB20: 90 | AC20: 91 | AD20: 86.68 | AE20: 五星级宿舍
B21: 护理5班（2020级） | C21: 5 | D21: 503 | E21: 86 | F21: 87 | G21: 87 | H21: 87 | I21: 86 | J21: 83 | K21: 87 | L21: 88 | M21: 85 | N21: 65 | O21: 88 | P21: 85 | Q21: 80 | R21: 78 | S21: 88 | T21: 87 | U21: 90 | V21: 90 | W21: 87 | X21: 90 | Y21: 90 | Z21: 86 | AA21: 90 | AB21: 90 | AC21: 89 | AD21: 85.96 | AE21: 四星级宿舍
B22: 护理5班（2020级） | C22: 5 | D22: 506 | E22: 83 | F22: 88 | G22: 89 | H22: 88 | I22: 86 | J22: 83 | K22: 84 | L22: 84 | M22: 87 | N22: 56 | O22: 89 | P22: 90 | Q22: 85 | R22: 88 | S22: 86 | T22: 90 | U22: 89 | V22: 88 | W22: 90 | X22: 86 | Y22: 86 | Z22: 78 | AA22: 88 | AB22: 91 | AC22: 88 | AD22: 85.6 | AE22: 四星级宿舍
B23: 护理5班（2020级） | C23: 1 | D23: 329 | E23: 83 | F23: 87 | G23: 83 | H23: 85 | I23: 85 | J23: 88 | K23: 86 | L23: 89 | M23: 82 | N23: 84 | O23: 68 | P23: 90 | Q23: 89 | R23: 89 | S23: 89 | T23: 86 | U23: 89 | V23: 85 | W23: 83 | X23: 86 | Y23: 82 | Z23: 82 | AA23: 85 | AB23: 81 | AC23: 89 | AD23: 85 | AE23: 四星级宿舍
B24: 护理5班（2020级） | C24: 5 | D24: 504 | E24: 83 | F24: 86 | G24: 0 | H24: 86 | I24: 85 | J24: 83 | K24: 89 | L24: 88 | M24: 87 | N24: 87 | O24: 88 | P24: 93 | Q24: 80 | R24: 87 | S24: 87 | T24: 89 | U24: 93 | V24: 90 | W24: 91 | X24: 90 | Y24: 89 | Z24: 85 | AA24: 90 | AB24: 90 | AC24: 88 | AD24: 84.16 | AE24: 四星级宿舍
B25: 护理5/6班（2020级） | C25: 1 | D25: 332 | E25: 81 | F25: 84 | G25: 85 | H25: 84 | I25: 84 | J25: 86 | K25: 89 | L25: 86 | M25: 86 | N25: 83 | O25: 81 | P25: 86 | Q25: 83 | R25: 86 | S25: 85 | T25: 85 | U25: 85 | V25: 83 | W25: 84 | X25: 84 | Y25: 84 | Z25: 82 | AA25: 82 | AB25: 81 | AC25: 81 | AD25: 84 | AE25: 四星级宿舍
B26: 护理5班（2020级） | C26: 5 | D26: 508 | E26: 83 | F26: 80 | G26: 90 | H26: 86 | I26: 83 | J26: 84 | K26: 85 | L26: 85 | M26: 83 | N26: 71 | O26: 87 | P26: 89 | Q26: 86 | R26: 80 | S26: 78 | T26: 89 | U26: 86 | V26: 87 | W26: 72 | X26: 89 | Y26: 84 | Z26: 55 | AA26: 70 | AB26: 84 | AC26: 86 | AD26: 82.08 | AE26: 四星级宿舍
B27: 护理5班（2020级） | C27: 5 | D27: 505 | E27: 85 | F27: 87 | G27: 87 | H27: 87 | I27: 86 | J27: 83 | K27: 85 | L27: 79 | M27: 83 | N27: 57 | O27: 83 | P27: 86 | Q27: 87 | R27: 82 | S27: 87 | T27: 87 | U27: 82 | V27: 85 | W27: 87 | X27: 75 | Y27: 86 | Z27: 67 | AA27: 85 | AB27: 82 | AC27: 25 | AD27: 80.2 | AE27: 三星级宿舍
B28: 护理5班（2020级） | C28: 1 | D28: 330 | E28: 84 | F28: 84 | G28: 87 | H28: 85 | I28: 86 | J28: 88 | K28: 87 | L28: 79 | M28: 83 | N28: 83 | O28: 78 | P28: 85 | Q28: 84 | R28: 85 | S28: 85 | T28: 85 | U28: 78 | V28: 61 | W28: 82 | X28: 81 | Y28: 82 | Z28: 0 | AA28: 82 | AB28: 80 | AC28: 81 | AD28: 79 | AE28: 三星级宿舍
AC29: 平均值 | AD29: =SUM(AD20:AD28)/9 -> 83.63111111
A30: 电子信息系20级物联网2班 | B30: 物联网2班（2020级） | C30: 7 | D30: 413 | E30: 95 | F30: 88 | G30: 94 | H30: 95 | I30: 95 | J30: 93 | K30: 92 | L30: 70 | M30: 79 | N30: 86 | O30: 91 | P30: 93 | Q30: 94 | R30: 95 | S30: 95 | T30: 95 | U30: 95 | V30: 95 | W30: 95 | X30: 95 | Y30: 95 | Z30: 95 | AA30: 94 | AB30: 95 | AC30: 100 | AD30: 92.36 | AE30: 文明宿舍
B31: 物联网2班（2020级） | C31: 7 | D31: 412 | E31: 93 | F31: 84 | G31: 92 | H31: 90 | I31: 93 | J31: 89 | K31: 89 | L31: 59 | M31: 84 | N31: 88 | O31: 88 | P31: 90 | Q31: 91 | R31: 87 | S31: 87 | T31: 87 | U31: 80 | V31: 85 | W31: 85 | X31: 85 | Y31: 85 | Z31: 85 | AA31: 85 | AB31: 85 | AC31: 98 | AD31: 86.56 | AE31: 五星级宿舍
B32: 物联网2班（2020级） | C32: 4 | D32: 525 | E32: 60 | F32: 86 | G32: 67 | H32: 60 | I32: 68 | J32: 72 | K32: 66 | L32: 50 | M32: 60 | N32: 67 | O32: 73 | P32: 71 | Q32: 71 | R32: 82 | S32: 74 | T32: 92 | U32: 77 | V32: 74 | W32: 77 | X32: 82 | Y32: 81 | Z32: 81 | AA32: 79 | AB32: 88 | AC32: 91 | AD32: 73.96
B33: 物联网2班（2020级） | C33: 4 | D33: 530 | E33: 72 | F33: 74 | G33: 53 | H33: 80 | I33: 66 | J33: 66 | K33: 60 | L33: 47 | M33: 55 | N33: 64 | O33: 83 | P33: 72 | Q33: 64 | R33: 83 | S33: 75 | T33: 91 | U33: 78 | V33: 75 | W33: 74 | X33: 81 | Y33: 78 | Z33: 78 | AA33: 80 | AB33: 89 | AC33: 91 | AD33: 73.16
B34: 物联网2班（2020级） | C34: 4 | D34: 529 | E34: 57 | F34: 57 | G34: 62 | H34: 49 | I34: 71 | J34: 71 | K34: 57 | L34: 35 | M34: 60 | N34: 60 | O34: 79 | P34: 72 | Q34: 64 | R34: 83 | S34: 64 | T34: 90 | U34: 84 | V34: 61 | W34: 72 | X34: 79 | Y34: 76 | Z34: 77 | AA34: 79 | AB34: 86 | AC34: 94 | AD34: 69.56
B35: 物联网2班（2020级） | C35: 4 | D35: 528 | E35: 63 | F35: 55 | G35: 46 | H35: 74 | I35: 68 | J35: 46 | K35: 61 | L35: 54 | M35: 59 | N35: 61 | O35: 72 | P35: 70 | Q35: 63 | R35: 82 | S35: 70 | T35: 93 | U35: 82 | V35: 63 | W35: 70 | X35: 80 | Y35: 74 | Z35: 69 | AA35: 79 | AB35: 87 | AC35: 96 | AD35: 69.48
B36: 物联网2班（2020级） | C36: 4 | D36: 526 | E36: 59 | F36: 80 | G36: 0 | H36: 59 | I36: 72 | J36: 67 | K36: 62 | L36: 58 | M36: 59 | N36: 60 | O36: 69 | P36: 70 | Q36: 64 | R36: 83 | S36: 68 | T36: 89 | U36: 83 | V36: 70 | W36: 71 | X36: 78 | Y36: 75 | Z36: 75 | AA36: 78 | AB36: 87 | AC36: 90 | AD36: 69.04
B37: 物联网2班（2020级） | C37: 4 | D37: 527 | E37: 67 | F37: 50 | G37: 34 | H37: 57 | I37: 67 | J37: 46 | K37: 59 | L37: 58 | M37: 60 | N37: 61 | O37: 74 | P37: 70 | Q37: 52 | R37: 81 | S37: 67 | T37: 87 | U37: 78 | V37: 70 | W37: 75 | X37: 77 | Y37: 79 | Z37: 73 | AA37: 77 | AB37: 81 | AC37: 89 | AD37: 67.56
AC38: 平均值 | AD38: =SUM(AD30:AD37)/8 -> 75.21
A39: 计算机系20级计算机应用技术1班 | B39: 计算1班（2020级） | C39: 5 | D39: 611 | E39: 94 | F39: 90 | G39: 92 | H39: 88 | I39: 88 | J39: 84 | K39: 87 | L39: 86 | M39: 89 | N39: 87 | O39: 65 | P39: 86 | Q39: 92 | R39: 87 | S39: 94 | T39: 94 | U39: 91 | V39: 93 | W39: 93 | X39: 91 | Y39: 88 | Z39: 93 | AA39: 93 | AB39: 94 | AC39: 93 | AD39: 89.28 | AE39: 五星级宿舍
B40: 计算1班（2020级） | C40: 5 | D40: 610 | E40: 93 | F40: 90 | G40: 90 | H40: 86 | I40: 86 | J40: 78 | K40: 77 | L40: 77 | M40: 76 | N40: 81 | O40: 64 | P40: 84 | Q40: 87 | R40: 94 | S40: 87 | T40: 85 | U40: 84 | V40: 86 | W40: 79 | X40: 79 | Y40: 85 | Z40: 87 | AA40: 88 | AB40: 88 | AC40: 76 | AD40: 83.48 | AE40: 四星级宿舍
B41: 计算1班（2020级） | C41: 3 | D41: 505 | E41: 76 | F41: 90 | G41: 86 | H41: 85 | I41: 84 | J41: 81 | K41: 77 | L41: 77 | M41: 79 | N41: 81 | O41: 77 | P41: 76 | Q41: 81 | R41: 81 | S41: 79 | T41: 83 | U41: 85 | V41: 85 | W41: 86 | X41: 82 | Y41: 83 | Z41: 85 | AA41: 84 | AB41: 85 | AC41: 90 | AD41: 82.32 | AE41: 四星级宿舍
B42: 计算1班（2020级） | C42: 3 | D42: 501 | E42: 72 | F42: 85 | G42: 77 | H42: 82 | I42: 84 | J42: 51 | K42: 81 | L42: 80 | M42: 78 | N42: 78 | O42: 76 | P42: 69 | Q42: 74 | R42: 72 | S42: 78 | T42: 81 | U42: 81 | V42: 82 | W42: 81 | X42: 79 | Y42: 79 | Z42: 81 | AA42: 79 | AB42: 80 | AC42: 90 | AD42: 78 | AE42: 三星级宿舍
B43: 计算1班（2020级） | C43: 3 | D43: 502 | E43: 70 | F43: 81 | G43: 76 | H43: 81 | I43: 82 | J43: 48 | K43: 75 | L43: 74 | M43: 78 | N43: 77 | O43: 73 | P43: 69 | Q43: 77 | R43: 76 | S43: 79 | T43: 78 | U43: 79 | V43: 77 | W43: 80 | X43: 80 | Y43: 76 | Z43: 79 | AA43: 76 | AB43: 76 | AC43: 87 | AD43: 76.16 | AE43: 三星级宿舍
B44: 计算1班（2020级） | C44: 3 | D44: 504 | E44: 71 | F44: 85 | G44: 71 | H44: 77 | I44: 80 | J44: 79 | K44: 74 | L44: 73 | M44: 70 | N44: 75 | O44: 64 | P44: 74 | Q44: 81 | R44: 72 | S44: 77 | T44: 77 | U44: 76 | V44: 75 | W44: 80 | X44: 74 | Y44: 78 | Z44: 76 | AA44: 79 | AB44: 78 | AC44: 87 | AD44: 76.12 | AE44: 三星级宿舍
B45: 计算1班（2020级） | C45: 3 | D45: 503 | E45: 74 | F45: 82 | G45: 75 | H45: 82 | I45: 81 | J45: 52 | K45: 66 | L45: 54 | M45: 72 | N45: 73 | O45: 68 | P45: 74 | Q45: 76 | R45: 79 | S45: 68 | T45: 81 | U45: 81 | V45: 77 | W45: 79 | X45: 81 | Y45: 78 | Z45: 81 | AA45: 82 | AB45: 77 | AC45: 85 | AD45: 75.12
B46: 计算1班（2020级） | C46: 3 | D46: 506 | E46: 71 | F46: 81 | G46: 78 | H46: 77 | I46: 79 | J46: 51 | K46: 68 | L46: 73 | M46: 71 | N46: 74 | O46: 72 | P46: 79 | Q46: 73 | R46: 72 | S46: 75 | T46: 38 | U46: 75 | V46: 76 | W46: 79 | X46: 79 | Y46: 76 | Z46: 75 | AA46: 77 | AB46: 81 | AC46: 87 | AD46: 73.48
AC47: 平均值 | AD47: =SUM(AD39:AD46)/8 -> 79.245

Sheet 各系出勤得分
B1: 2021年10月11日-15日 | D1: 2021年10月17日- 22日 | F1: 2021年10月24日- 30日 | H1: 2021年10月31日- 11月5日 | J1: 2021年11月7日- 12日 | L1: 2021年11月14日-19日 | N1: 2021年11月21日-26日 | P1: 2021年11月28日-12月4日 | R1: 总出勤率
B2: 早操出勤率 | C2: 晚自习出勤率 | D2: 早操出勤率 | E2: 晚自习出勤率 | F2: 早操出勤率 | G2: 晚自习出勤率 | H2: 早操出勤率 | I2: 晚自习出勤率 | J2: 早操出勤率 | K2: 晚自习出勤率 | L2: 早操出勤率 | M2: 晚自习出勤率 | N2: 早操出勤率 | O2: 晚自习出勤率 | P2: 早操出勤率 | Q2: 晚自习出勤率
A3: 财经系20级会计管理3班 | C3: 100.00% | D3: 95.74% | E3: 99.57% | F3: 94.15% | G3: 97.87% | H3: 93.62% | I3: 95.31% | K3: 90.21% | L3: 93.62% | M3: 97.44% | N3: 96.60% | O3: 96.17% | P3: 100.00% | Q3: 99.57% | R3: =SUM(B3:Q3)/14 -> 96.42%
A4: 农牧系20级畜牧兽医1班 | C4: 69.77% | D4: 0.00% | E4: 60.47% | F4: 11.63% | G4: 70.23% | H4: 20.93% | I4: 67.91% | K4: 69.50% | L4: 40.31% | M4: 72.09% | N4: 35.81% | O4: 73.95% | P4: 43.60% | Q4: 71.16% | R4: =SUM(B4:Q4)/14 -> 50.53%
A5: 医药卫生20级护理5班 | C5: 100.00% | D5: 60.00% | E5: 100.00% | F5: 20.83% | G5: 93.33% | H5: 100.00% | I5: 100.00% | K5: 93.00% | L5: 100.00% | M5: 66.00% | N5: 80.42% | O5: 100.00% | P5: 90.63% | Q5: 90.42% | R5: =SUM(B5:Q5)/14 -> 85.33%
A6: 电子信息系20级物联网2班 | C6: 100.00% | D6: 100.00% | E6: 99.47% | F6: 48.03% | G6: 38.95% | H6: 0.00% | I6: 0.00% | K6: 100.00% | L6: 74.56% | M6: 100.00% | N6: 42.63% | O6: 68.42% | P6: 80.92% | Q6: 76.84% | R6: =SUM(B6:Q6)/14 -> 66.42%
A7: 计算机系20级计算机应用技术1班 | C7: 93.18% | D7: 12.73% | E7: 89.55% | F7: 0.00% | G7: 79.55% | H7: 0.00% | I7: 89.54% | K7: 87.72% | L7: 31.82% | M7: 80.45% | N7: 42.27% | O7: 71.81% | P7: 22.73% | Q7: 80.90% | R7: =SUM(B7:Q7)/14 -> 55.88%
